[Event "*** Titled Tuesday Blitz"]
[Site "Chess.com"]
[Date "2021.03.30"]
[Round "4"]
[White "Gudmundur_Kjartansson"]
[Black "malakismayil"]
[Result "1-0"]
[WhiteElo "2547"]
[BlackElo "2323"]
[TimeControl "180+1"]
[EndTime "10:38:39 PDT"]
[Termination "Gudmundur_Kjartansson won on time"]

1. e4 {[%clk 0:03:00.9]} 1... e5 {[%clk 0:02:58.8]} 2. Nf3 {[%clk 0:03:00.6]}
2... Nc6 {[%clk 0:02:58.3]} 3. d4 {[%clk 0:03:01]} 3... exd4 {[%clk 0:02:56.7]}
4. Nxd4 {[%clk 0:03:01.6]} 4... Bc5 {[%clk 0:02:55.5]} 5. Be3 {[%clk 0:03:00.1]}
5... Qf6 {[%clk 0:02:53.5]} 6. c3 {[%clk 0:02:57.4]} 6... Nge7 {[%clk
0:02:52.4]} 7. Bc4 {[%clk 0:02:57.3]} 7... O-O {[%clk 0:02:46.5]} 8. O-O {[%clk
0:02:53.5]} 8... b6 {[%clk 0:02:29.3]} 9. Nc2 {[%clk 0:02:15.6]} 9... Bxe3
{[%clk 0:02:03.7]} 10. Nxe3 {[%clk 0:02:15.2]} 10... Qg6 {[%clk 0:02:02.8]} 11.
Nd2 {[%clk 0:02:12.8]} 11... Kh8 {[%clk 0:01:39.8]} 12. f4 {[%clk 0:02:10.8]}
12... f5 {[%clk 0:01:37.5]} 13. exf5 {[%clk 0:02:05.2]} 13... Nxf5 {[%clk
0:01:34.8]} 14. Nxf5 {[%clk 0:01:57.1]} 14... Qxf5 {[%clk 0:01:31.9]} 15. Qf3
{[%clk 0:01:56.6]} 15... Bb7 {[%clk 0:01:27.6]} 16. Bd3 {[%clk 0:01:55.8]} 16...
Qc5+ {[%clk 0:01:12.5]} 17. Kh1 {[%clk 0:01:49.2]} 17... Rae8 {[%clk 0:01:08]}
18. Qh3 {[%clk 0:01:45.7]} 18... h6 {[%clk 0:01:00.8]} 19. Ne4 {[%clk
0:01:21.9]} 19... Qd5 {[%clk 0:00:54.3]} 20. Ng5 {[%clk 0:01:15.5]} 20... Rxf4
{[%clk 0:00:43.5]} 21. Rxf4 {[%clk 0:01:08.8]} 21... Qxg5 {[%clk 0:00:43.1]} 22.
Raf1 {[%clk 0:01:06.5]} 22... Rg8 {[%clk 0:00:25.4]} 23. Rg4 {[%clk 0:00:51.8]}
23... Qd2 {[%clk 0:00:22.4]} 24. Re4 {[%clk 0:00:36.2]} 24... Nd8 {[%clk
0:00:02.6]} 25. Re2 {[%clk 0:00:31.7]} 25... Qg5 {[%clk 0:00:01.1]} 26. Qxd7
{[%clk 0:00:30.8]} 1-0

[Event "*** Titled Tuesday Blitz"]
[Site "Chess.com"]
[Date "2021.03.30"]
[Round "4"]
[White "ukchessbomber"]
[Black "Kildepiotr"]
[Result "0-1"]
[WhiteElo "2491"]
[BlackElo "2686"]
[TimeControl "180+1"]
[EndTime "10:38:40 PDT"]
[Termination "Kildepiotr won by resignation"]

1. d4 {[%clk 0:03:00.9]} 1... c5 {[%clk 0:02:58]} 2. d5 {[%clk 0:03:00.9]} 2...
e5 {[%clk 0:02:58.2]} 3. c4 {[%clk 0:03:01.2]} 3... d6 {[%clk 0:02:58.6]} 4. e4
{[%clk 0:03:01.7]} 4... Be7 {[%clk 0:02:59.2]} 5. Nc3 {[%clk 0:03:01.7]} 5...
Bg5 {[%clk 0:02:59.2]} 6. Bd3 {[%clk 0:03:00.8]} 6... Bxc1 {[%clk 0:02:59]} 7.
Qxc1 {[%clk 0:03:01.4]} 7... Ne7 {[%clk 0:02:59.6]} 8. Nge2 {[%clk 0:02:58.4]}
8... O-O {[%clk 0:02:59.3]} 9. h4 {[%clk 0:02:56.3]} 9... h6 {[%clk 0:02:52.7]}
10. f3 {[%clk 0:02:53]} 10... f5 {[%clk 0:02:50.4]} 11. Ng3 {[%clk 0:02:49.7]}
11... f4 {[%clk 0:02:46.4]} 12. Nge2 {[%clk 0:02:49.4]} 12... Ng6 {[%clk
0:02:43.1]} 13. h5 {[%clk 0:02:32.9]} 13... Nh4 {[%clk 0:02:43]} 14. Kf1 {[%clk
0:02:33.3]} 14... Qg5 {[%clk 0:02:42.5]} 15. Rh2 {[%clk 0:01:48.6]} 15... Nxg2
{[%clk 0:02:39.9]} 16. Rxg2 {[%clk 0:01:30.2]} 16... Bh3 {[%clk 0:02:38.8]} 17.
Ke1 {[%clk 0:01:30.6]} 17... Qxg2 {[%clk 0:02:27.9]} 18. Kd2 {[%clk 0:01:29.4]}
18... Qxf3 {[%clk 0:02:27]} 19. Qg1 {[%clk 0:01:23.6]} 19... Nd7 {[%clk
0:02:19]} 20. Qh2 {[%clk 0:01:23.4]} 20... Bg4 {[%clk 0:02:13.4]} 21. Rg1 {[%clk
0:01:22.8]} 21... Nf6 {[%clk 0:02:10.7]} 22. Rg2 {[%clk 0:01:15.1]} 22... Qe3+
{[%clk 0:02:07.6]} 23. Kc2 {[%clk 0:01:15.2]} 23... Bxe2 {[%clk 0:01:45.2]} 24.
Rxe2 {[%clk 0:00:33]} 24... Qg3 {[%clk 0:01:44.6]} 25. Qh1 {[%clk 0:00:32.6]}
25... f3 {[%clk 0:01:39.1]} 26. Re1 {[%clk 0:00:30.5]} 26... f2 {[%clk
0:01:37.1]} 27. Rf1 {[%clk 0:00:30.1]} 27... Ng4 {[%clk 0:01:37.2]} 28. Nd1
{[%clk 0:00:30.2]} 28... Rf4 {[%clk 0:01:32.9]} 29. Kd2 {[%clk 0:00:25.3]} 29...
Raf8 {[%clk 0:01:27.3]} 30. a3 {[%clk 0:00:24.7]} 30... Nh2 {[%clk 0:01:23]} 31.
Ne3 {[%clk 0:00:23.2]} 31... Nxf1+ {[%clk 0:01:21.9]} 32. Nxf1 {[%clk
0:00:24.1]} 32... Qg5 {[%clk 0:01:20.1]} 33. Kc2 {[%clk 0:00:19.4]} 33... Rg4
{[%clk 0:01:18.6]} 34. b4 {[%clk 0:00:19.6]} 34... Rg1 {[%clk 0:01:17.8]} 35.
Qh3 {[%clk 0:00:19.1]} 35... Qg4 {[%clk 0:01:15.6]} 36. Qe3 {[%clk 0:00:17.5]}
36... b6 {[%clk 0:01:13.1]} 37. a4 {[%clk 0:00:14.6]} 37... Rf3 {[%clk
0:01:09.2]} 38. Qe2 {[%clk 0:00:11]} 38... Qh3 {[%clk 0:01:02.1]} 39. Nd2 {[%clk
0:00:06.7]} 39... Rxd3 {[%clk 0:00:58.3]} 40. Qxd3 {[%clk 0:00:05.9]} 40...
Qxd3+ {[%clk 0:00:57.9]} 41. Kxd3 {[%clk 0:00:06.8]} 41... Rd1 {[%clk
0:00:57.4]} 0-1

[Event "*** Titled Tuesday Blitz"]
[Site "Chess.com"]
[Date "2021.03.30"]
[Round "4"]
[White "CzechmVIII"]
[Black "kikydu96"]
[Result "1-0"]
[WhiteElo "2216"]
[BlackElo "2470"]
[TimeControl "180+1"]
[EndTime "10:38:46 PDT"]
[Termination "CzechmVIII won on time"]

1. e4 {[%clk 0:03:00.9]} 1... c5 {[%clk 0:02:57.1]} 2. Nf3 {[%clk 0:03:00.9]}
2... d6 {[%clk 0:02:54.4]} 3. d4 {[%clk 0:03:00.8]} 3... cxd4 {[%clk 0:02:54.3]}
4. Nxd4 {[%clk 0:03:01.7]} 4... Nf6 {[%clk 0:02:54.5]} 5. Nc3 {[%clk 0:03:02.1]}
5... Nc6 {[%clk 0:02:53.1]} 6. Bc4 {[%clk 0:03:00.4]} 6... e5 {[%clk 0:02:35.5]}
7. Nf5 {[%clk 0:02:59.4]} 7... Nxe4 {[%clk 0:01:58.9]} 8. Qd5 {[%clk 0:02:19.9]}
8... Qf6 {[%clk 0:01:49.9]} 9. Nxe4 {[%clk 0:01:53.8]} 9... Qxf5 {[%clk
0:01:47]} 10. Ng3 {[%clk 0:01:03.4]} 10... Qg6 {[%clk 0:01:32.3]} 11. O-O {[%clk
0:00:41]} 11... Be6 {[%clk 0:01:28.5]} 12. Qb5 {[%clk 0:00:41.2]} 12... Bxc4
{[%clk 0:01:21.3]} 13. Qxc4 {[%clk 0:00:41.4]} 13... Be7 {[%clk 0:01:17.4]} 14.
c3 {[%clk 0:00:32.4]} 14... O-O {[%clk 0:01:11]} 15. f4 {[%clk 0:00:32.6]} 15...
Qg4 {[%clk 0:00:45.4]} 16. Qd5 {[%clk 0:00:26.9]} 16... Qe6 {[%clk 0:00:42.2]}
17. Qb5 {[%clk 0:00:21.8]} 17... Qd7 {[%clk 0:00:29.2]} 18. f5 {[%clk
0:00:20.6]} 18... f6 {[%clk 0:00:14.7]} 19. Be3 {[%clk 0:00:20.6]} 19... d5
{[%clk 0:00:11.3]} 20. Rad1 {[%clk 0:00:20.5]} 20... Rfd8 {[%clk 0:00:10]} 21.
Qe2 {[%clk 0:00:18.3]} 21... Rac8 {[%clk 0:00:06.5]} 22. Kh1 {[%clk 0:00:18.1]}
22... Na5 {[%clk 0:00:06.7]} 23. Qh5 {[%clk 0:00:15.5]} 23... Nc4 {[%clk
0:00:04.4]} 24. Bc1 {[%clk 0:00:15.7]} 24... Qc6 {[%clk 0:00:02.6]} 25. Qg4
{[%clk 0:00:15.7]} 25... Nd6 {[%clk 0:00:01.9]} 26. Nh5 {[%clk 0:00:15.4]} 1-0

[Event "*** Titled Tuesday Blitz"]
[Site "Chess.com"]
[Date "2021.03.30"]
[Round "4"]
[White "AlexSuv"]
[Black "Sjakkerntobi"]
[Result "0-1"]
[WhiteElo "2555"]
[BlackElo "2403"]
[TimeControl "180+1"]
[EndTime "10:38:47 PDT"]
[Termination "Sjakkerntobi won by resignation"]

1. d4 {[%clk 0:03:00.9]} 1... e6 {[%clk 0:02:56.9]} 2. Nf3 {[%clk 0:02:57.4]}
2... Nf6 {[%clk 0:02:56.5]} 3. Bf4 {[%clk 0:02:54]} 3... d5 {[%clk 0:02:54.3]}
4. e3 {[%clk 0:02:53.5]} 4... c5 {[%clk 0:02:54.9]} 5. Nbd2 {[%clk 0:02:51.4]}
5... Nc6 {[%clk 0:02:55.4]} 6. c3 {[%clk 0:02:51.5]} 6... Bd6 {[%clk 0:02:55.7]}
7. Bg3 {[%clk 0:02:49.4]} 7... O-O {[%clk 0:02:54.9]} 8. Bd3 {[%clk 0:02:49.5]}
8... b6 {[%clk 0:02:54.6]} 9. Qe2 {[%clk 0:02:47.2]} 9... Bb7 {[%clk 0:02:51.3]}
10. Rd1 {[%clk 0:02:47.2]} 10... Ne7 {[%clk 0:02:46.3]} 11. e4 {[%clk
0:02:40.7]} 11... dxe4 {[%clk 0:02:44.2]} 12. Nxe4 {[%clk 0:02:41.6]} 12... Nxe4
{[%clk 0:02:08.2]} 13. Bxe4 {[%clk 0:02:42.5]} 13... Bxe4 {[%clk 0:02:08.9]} 14.
Qxe4 {[%clk 0:02:41.5]} 14... Nd5 {[%clk 0:01:53.9]} 15. dxc5 {[%clk 0:02:34]}
15... Bxc5 {[%clk 0:01:50.5]} 16. O-O {[%clk 0:02:21]} 16... Qf6 {[%clk
0:01:21.9]} 17. Ne5 {[%clk 0:02:14.9]} 17... Rfd8 {[%clk 0:01:16.9]} 18. h4
{[%clk 0:01:47.5]} 18... Rac8 {[%clk 0:01:06.4]} 19. h5 {[%clk 0:01:46.9]} 19...
Qf5 {[%clk 0:01:05.4]} 20. Qxf5 {[%clk 0:01:41.4]} 20... exf5 {[%clk 0:01:06.3]}
21. c4 {[%clk 0:01:34.5]} 21... Nf6 {[%clk 0:00:58.4]} 22. h6 {[%clk 0:01:27]}
22... g6 {[%clk 0:00:56]} 23. Rxd8+ {[%clk 0:01:16.9]} 23... Rxd8 {[%clk
0:00:56.1]} 24. Bh4 {[%clk 0:01:17.6]} 24... Rd6 {[%clk 0:00:49.6]} 25. Kh1
{[%clk 0:00:57]} 25... Ne4 {[%clk 0:00:44.1]} 26. f3 {[%clk 0:00:56.7]} 26...
Nd2 {[%clk 0:00:36.5]} 27. Rc1 {[%clk 0:00:47]} 27... f6 {[%clk 0:00:36.6]} 28.
b4 {[%clk 0:00:31.9]} 28... Bxb4 {[%clk 0:00:31.9]} 29. c5 {[%clk 0:00:29.7]}
29... Bxc5 {[%clk 0:00:30]} 30. Nc4 {[%clk 0:00:27.3]} 30... Nxc4 {[%clk
0:00:30.1]} 31. Rxc4 {[%clk 0:00:28.2]} 31... g5 {[%clk 0:00:29.7]} 32. Bg3
{[%clk 0:00:17.7]} 32... Rd1+ {[%clk 0:00:29.3]} 33. Kh2 {[%clk 0:00:17.3]}
33... f4 {[%clk 0:00:29.9]} 34. Bxf4 {[%clk 0:00:15.9]} 34... gxf4 {[%clk
0:00:30.8]} 35. Rxf4 {[%clk 0:00:16.8]} 35... Bd6 {[%clk 0:00:31.1]} 0-1

[Event "*** Titled Tuesday Blitz"]
[Site "Chess.com"]
[Date "2021.03.30"]
[Round "4"]
[White "geordie_derraugh"]
[Black "rachidhuilda"]
[Result "1-0"]
[WhiteElo "2476"]
[BlackElo "2292"]
[TimeControl "180+1"]
[EndTime "10:38:47 PDT"]
[Termination "geordie_derraugh won on time"]

1. e4 {[%clk 0:02:57.1]} 1... c5 {[%clk 0:02:57.2]} 2. Nf3 {[%clk 0:02:57]} 2...
e6 {[%clk 0:02:57.4]} 3. d3 {[%clk 0:02:55]} 3... a6 {[%clk 0:02:56]} 4. g3
{[%clk 0:02:54.8]} 4... b5 {[%clk 0:02:56.6]} 5. Bg2 {[%clk 0:02:55.1]} 5... Bb7
{[%clk 0:02:57.1]} 6. O-O {[%clk 0:02:55.8]} 6... Nc6 {[%clk 0:02:49.2]} 7. Re1
{[%clk 0:02:55.5]} 7... d6 {[%clk 0:02:45.3]} 8. Nbd2 {[%clk 0:02:54.9]} 8...
Be7 {[%clk 0:02:44.5]} 9. a4 {[%clk 0:02:47.8]} 9... Qc7 {[%clk 0:02:37.6]} 10.
Nf1 {[%clk 0:02:45.5]} 10... Nf6 {[%clk 0:02:34]} 11. h4 {[%clk 0:02:44.8]}
11... O-O {[%clk 0:02:32]} 12. Bf4 {[%clk 0:02:38.6]} 12... e5 {[%clk
0:02:25.4]} 13. Bg5 {[%clk 0:02:38.2]} 13... h6 {[%clk 0:02:12.4]} 14. Bxf6
{[%clk 0:02:37.9]} 14... Bxf6 {[%clk 0:02:12.4]} 15. Ne3 {[%clk 0:02:38]} 15...
Nd4 {[%clk 0:02:08.5]} 16. c3 {[%clk 0:02:31.2]} 16... Nxf3+ {[%clk 0:02:00.1]}
17. Qxf3 {[%clk 0:02:32.1]} 17... Bc8 {[%clk 0:01:13.3]} 18. axb5 {[%clk
0:02:24.5]} 18... Rb8 {[%clk 0:01:06.7]} 19. Nd5 {[%clk 0:02:21.6]} 19... Qd8
{[%clk 0:01:03.8]} 20. bxa6 {[%clk 0:01:43.9]} 20... Rxb2 {[%clk 0:01:00.8]} 21.
Nxf6+ {[%clk 0:01:37.5]} 21... gxf6 {[%clk 0:00:37]} 22. Bh3 {[%clk 0:01:09.1]}
22... Bxh3 {[%clk 0:00:32.8]} 23. a7 {[%clk 0:01:09.1]} 23... Qa8 {[%clk
0:00:31.7]} 24. g4 {[%clk 0:01:08]} 24... Rb7 {[%clk 0:00:27.3]} 25. Ra6 {[%clk
0:01:03]} 25... Rxa7 {[%clk 0:00:20.5]} 26. Rxd6 {[%clk 0:00:44.3]} 26... Ra1
{[%clk 0:00:20]} 27. Rxa1 {[%clk 0:00:44.1]} 27... Qxa1+ {[%clk 0:00:20]} 28.
Kh2 {[%clk 0:00:44.4]} 28... Qxc3 {[%clk 0:00:13.7]} 29. Kxh3 {[%clk 0:00:39.5]}
29... c4 {[%clk 0:00:06.6]} 30. Kg2 {[%clk 0:00:38.8]} 30... cxd3 {[%clk
0:00:05.9]} 31. Qxf6 {[%clk 0:00:28.8]} 31... d2 {[%clk 0:00:01.6]} 32. Qxh6
{[%clk 0:00:28.5]} 1-0

[Event "*** Titled Tuesday Blitz"]
[Site "Chess.com"]
[Date "2021.03.30"]
[Round "4"]
[White "theredking89"]
[Black "GOGIEFF"]
[Result "0-1"]
[WhiteElo "2544"]
[BlackElo "2888"]
[TimeControl "180+1"]
[EndTime "10:38:48 PDT"]
[Termination "GOGIEFF won on time"]

1. Nf3 {[%clk 0:03:00.9]} 1... Nf6 {[%clk 0:02:57.9]} 2. g3 {[%clk 0:03:00.9]}
2... g6 {[%clk 0:02:46.2]} 3. Bg2 {[%clk 0:03:01.8]} 3... Bg7 {[%clk 0:02:46.3]}
4. O-O {[%clk 0:03:02.7]} 4... O-O {[%clk 0:02:46.9]} 5. d4 {[%clk 0:03:03.6]}
5... Nc6 {[%clk 0:02:47.4]} 6. c4 {[%clk 0:03:03.7]} 6... a6 {[%clk 0:02:48]} 7.
Nc3 {[%clk 0:03:03]} 7... Rb8 {[%clk 0:02:48.3]} 8. d5 {[%clk 0:02:57]} 8... Na5
{[%clk 0:02:48.2]} 9. Qd3 {[%clk 0:02:57.1]} 9... b5 {[%clk 0:02:43.4]} 10. cxb5
{[%clk 0:02:54.9]} 10... axb5 {[%clk 0:02:44.3]} 11. b4 {[%clk 0:02:54.4]} 11...
Nc4 {[%clk 0:02:42.3]} 12. e4 {[%clk 0:02:51.9]} 12... Nxe4 {[%clk 0:02:35.3]}
13. Nxb5 {[%clk 0:02:36.4]} 13... Rxb5 {[%clk 0:02:25.6]} 14. Qxc4 {[%clk
0:02:02.9]} 14... Nd6 {[%clk 0:02:23.2]} 15. Qd3 {[%clk 0:02:03]} 15... Bxa1
{[%clk 0:02:22.2]} 16. Bf4 {[%clk 0:02:02.6]} 16... Bf6 {[%clk 0:02:05.4]} 17.
Bxd6 {[%clk 0:02:02.4]} 17... Ba6 {[%clk 0:02:03.8]} 18. Bf4 {[%clk 0:01:44.2]}
18... Rb6 {[%clk 0:02:02.5]} 19. Qd2 {[%clk 0:01:42.2]} 19... Bxf1 {[%clk
0:02:01.9]} 20. Bxf1 {[%clk 0:01:43.1]} 20... Qa8 {[%clk 0:02:01.7]} 21. Bxc7
{[%clk 0:01:39.1]} 21... Rb7 {[%clk 0:02:00.2]} 22. d6 {[%clk 0:01:25]} 22...
Rc8 {[%clk 0:01:48.2]} 23. Bg2 {[%clk 0:01:20.1]} 23... Rbxc7 {[%clk 0:01:45.1]}
24. dxc7 {[%clk 0:01:19.2]} 24... Rxc7 {[%clk 0:01:46]} 25. Nd4 {[%clk
0:00:44.5]} 25... Qc8 {[%clk 0:01:37.9]} 26. h4 {[%clk 0:00:38.6]} 26... Rc1+
{[%clk 0:01:33.6]} 27. Kh2 {[%clk 0:00:37.3]} 27... Qc3 {[%clk 0:01:34.1]} 28.
Qxc3 {[%clk 0:00:32.1]} 28... Rxc3 {[%clk 0:01:35]} 29. Nb5 {[%clk 0:00:30.3]}
29... Rc2 {[%clk 0:01:35]} 30. a4 {[%clk 0:00:28.1]} 30... Rb2 {[%clk
0:01:35.3]} 31. a5 {[%clk 0:00:23.2]} 31... Rxb4 {[%clk 0:01:35.4]} 32. a6
{[%clk 0:00:23.1]} 32... Rxb5 {[%clk 0:01:31.1]} 33. a7 {[%clk 0:00:23.3]} 33...
Ra5 {[%clk 0:01:30.9]} 34. a8=Q+ {[%clk 0:00:24.2]} 34... Rxa8 {[%clk
0:01:31.1]} 35. Bxa8 {[%clk 0:00:25]} 35... e6 {[%clk 0:01:30.8]} 36. Kg2 {[%clk
0:00:25.2]} 36... Kf8 {[%clk 0:01:30.9]} 37. Kf3 {[%clk 0:00:25]} 37... Bd4
{[%clk 0:01:31]} 38. h5 {[%clk 0:00:24.1]} 38... gxh5 {[%clk 0:01:30.2]} 39. Be4
{[%clk 0:00:22.2]} 39... h6 {[%clk 0:01:29.9]} 40. Ke2 {[%clk 0:00:22.4]} 40...
Bf6 {[%clk 0:01:29.6]} 41. Bb7 {[%clk 0:00:18.1]} 41... h4 {[%clk 0:01:29.4]}
42. gxh4 {[%clk 0:00:15.7]} 42... Bxh4 {[%clk 0:01:30.3]} 43. f4 {[%clk
0:00:15.4]} 43... f5 {[%clk 0:01:29.5]} 44. Kf3 {[%clk 0:00:16.3]} 44... Ke7
{[%clk 0:01:29]} 45. Bc8 {[%clk 0:00:17.2]} 45... d5 {[%clk 0:01:28.4]} 46. Ke3
{[%clk 0:00:16]} 46... Be1 {[%clk 0:01:28.1]} 47. Ke2 {[%clk 0:00:15.6]} 47...
Bb4 {[%clk 0:01:28.6]} 48. Ke3 {[%clk 0:00:11.9]} 48... Bd6 {[%clk 0:01:29.1]}
49. Ba6 {[%clk 0:00:11.1]} 49... Kf6 {[%clk 0:01:29.5]} 50. Be2 {[%clk 0:00:12]}
50... Bxf4+ {[%clk 0:01:28.7]} 51. Kxf4 {[%clk 0:00:11.8]} 51... e5+ {[%clk
0:01:29.4]} 52. Kf3 {[%clk 0:00:07.7]} 52... Kg5 {[%clk 0:01:29.7]} 53. Ba6
{[%clk 0:00:07.6]} 53... d4 {[%clk 0:01:30.1]} 54. Bb7 {[%clk 0:00:03.2]} 54...
h5 {[%clk 0:01:30.1]} 55. Kg3 {[%clk 0:00:02.3]} 55... h4+ {[%clk 0:01:30.2]}
56. Kf3 {[%clk 0:00:03.2]} 56... e4+ {[%clk 0:01:30.2]} 57. Kg2 {[%clk
0:00:04.1]} 57... d3 {[%clk 0:01:30.1]} 0-1

[Event "*** Titled Tuesday Blitz"]
[Site "Chess.com"]
[Date "2021.03.30"]
[Round "4"]
[White "Nozdrachev_Leonid"]
[Black "MF1966Idrisov"]
[Result "1-0"]
[WhiteElo "2540"]
[BlackElo "2364"]
[TimeControl "180+1"]
[EndTime "10:38:48 PDT"]
[Termination "Nozdrachev_Leonid won on time"]

1. e4 {[%clk 0:03:00.9]} 1... c6 {[%clk 0:02:59.3]} 2. d4 {[%clk 0:02:59.4]}
2... d5 {[%clk 0:02:59.4]} 3. Nc3 {[%clk 0:03:00.3]} 3... dxe4 {[%clk
0:02:59.3]} 4. Nxe4 {[%clk 0:03:01.2]} 4... Nf6 {[%clk 0:02:56]} 5. Nxf6+ {[%clk
0:03:00.9]} 5... exf6 {[%clk 0:02:56.2]} 6. c3 {[%clk 0:03:01.1]} 6... Bd6
{[%clk 0:02:56.5]} 7. Bd3 {[%clk 0:03:00.6]} 7... O-O {[%clk 0:02:55.2]} 8. Qc2
{[%clk 0:03:01.5]} 8... g6 {[%clk 0:02:53.3]} 9. h4 {[%clk 0:03:00.4]} 9... Re8+
{[%clk 0:02:47.4]} 10. Ne2 {[%clk 0:02:57]} 10... c5 {[%clk 0:02:43.3]} 11. Be3
{[%clk 0:02:55.2]} 11... cxd4 {[%clk 0:02:42.7]} 12. Bxd4 {[%clk 0:02:56]} 12...
Be5 {[%clk 0:02:43]} 13. O-O-O {[%clk 0:02:54.8]} 13... Nc6 {[%clk 0:02:41.1]}
14. Be3 {[%clk 0:02:52]} 14... Qa5 {[%clk 0:02:39.8]} 15. h5 {[%clk 0:02:42.6]}
15... f5 {[%clk 0:02:19.7]} 16. hxg6 {[%clk 0:02:34.1]} 16... hxg6 {[%clk
0:02:19.2]} 17. Kb1 {[%clk 0:02:30.8]} 17... Be6 {[%clk 0:02:17.4]} 18. Nc1
{[%clk 0:02:30.8]} 18... Rad8 {[%clk 0:02:12]} 19. g4 {[%clk 0:02:28.9]} 19...
Bg7 {[%clk 0:02:03.4]} 20. gxf5 {[%clk 0:02:24.5]} 20... Bxf5 {[%clk 0:02:03.1]}
21. Bxf5 {[%clk 0:02:23.9]} 21... Qxf5 {[%clk 0:02:01.7]} 22. Qxf5 {[%clk
0:02:23.2]} 22... gxf5 {[%clk 0:02:02.1]} 23. Kc2 {[%clk 0:02:22.2]} 23... b6
{[%clk 0:01:51.1]} 24. Nd3 {[%clk 0:02:18.8]} 24... Ne5 {[%clk 0:01:16.7]} 25.
Nxe5 {[%clk 0:02:13.6]} 25... Rxd1 {[%clk 0:01:15]} 26. Rxd1 {[%clk 0:02:10.9]}
26... Bxe5 {[%clk 0:01:14.3]} 27. Rd7 {[%clk 0:02:10.1]} 27... f4 {[%clk
0:01:14.6]} 28. Bd2 {[%clk 0:02:06.4]} 28... Bb8 {[%clk 0:01:14.1]} 29. Kd3
{[%clk 0:02:04.8]} 29... Kg7 {[%clk 0:01:12.3]} 30. Rd4 {[%clk 0:02:03.4]} 30...
Be5 {[%clk 0:01:04.6]} 31. Re4 {[%clk 0:01:59.8]} 31... f5 {[%clk 0:00:58.8]}
32. Re1 {[%clk 0:01:57.4]} 32... Rd8+ {[%clk 0:00:55.6]} 33. Kc2 {[%clk
0:01:47.3]} 33... Kf6 {[%clk 0:00:50.1]} 34. Rh1 {[%clk 0:01:39]} 34... Rd7
{[%clk 0:00:49.5]} 35. Rh6+ {[%clk 0:01:35.4]} 35... Kg5 {[%clk 0:00:42.7]} 36.
Re6 {[%clk 0:01:34]} 36... Bc7 {[%clk 0:00:42.4]} 37. f3 {[%clk 0:01:33.6]}
37... Kh4 {[%clk 0:00:40.1]} 38. Rg6 {[%clk 0:01:32.8]} 38... Kh5 {[%clk
0:00:34.1]} 39. Rg8 {[%clk 0:01:30.5]} 39... Kh6 {[%clk 0:00:26.5]} 40. c4
{[%clk 0:01:27.2]} 40... Rg7 {[%clk 0:00:22.3]} 41. Rxg7 {[%clk 0:01:25.4]}
41... Kxg7 {[%clk 0:00:22.3]} 42. b4 {[%clk 0:01:24.5]} 42... Kh6 {[%clk
0:00:21.7]} 43. Kd3 {[%clk 0:01:24.1]} 43... Kh5 {[%clk 0:00:21]} 44. c5 {[%clk
0:01:21.3]} 44... bxc5 {[%clk 0:00:18.2]} 45. bxc5 {[%clk 0:01:22.2]} 45... Kh4
{[%clk 0:00:18.4]} 46. Bc3 {[%clk 0:01:21.8]} 46... Kg3 {[%clk 0:00:18.1]} 47.
Ke2 {[%clk 0:01:21.9]} 47... Kg2 {[%clk 0:00:15.1]} 48. Bf6 {[%clk 0:01:21.2]}
48... Kg3 {[%clk 0:00:12]} 49. Be7 {[%clk 0:01:21]} 49... Kg2 {[%clk 0:00:09.1]}
50. Bd6 {[%clk 0:01:20.7]} 50... Ba5 {[%clk 0:00:01.6]} 51. c6 {[%clk
0:01:20.4]} 1-0

[Event "*** Titled Tuesday Blitz"]
[Site "Chess.com"]
[Date "2021.03.30"]
[Round "4"]
[White "Fablibi"]
[Black "Fandorine"]
[Result "0-1"]
[WhiteElo "2724"]
[BlackElo "2881"]
[TimeControl "180+1"]
[EndTime "10:38:50 PDT"]
[Termination "Fandorine won by resignation"]

1. e4 {[%clk 0:03:00.9]} 1... g6 {[%clk 0:02:58.1]} 2. d4 {[%clk 0:03:00.6]}
2... Bg7 {[%clk 0:02:58.3]} 3. Nc3 {[%clk 0:03:00.6]} 3... d6 {[%clk 0:02:58.9]}
4. Be3 {[%clk 0:03:00]} 4... a6 {[%clk 0:02:58.6]} 5. Qd2 {[%clk 0:02:58.3]}
5... Nd7 {[%clk 0:02:58]} 6. h4 {[%clk 0:02:55]} 6... h5 {[%clk 0:02:58.2]} 7.
Nh3 {[%clk 0:02:52.3]} 7... b5 {[%clk 0:02:58.2]} 8. Ng5 {[%clk 0:02:41.9]} 8...
Bb7 {[%clk 0:02:56.8]} 9. f3 {[%clk 0:02:21.8]} 9... e6 {[%clk 0:02:56.3]} 10.
g3 {[%clk 0:02:17.7]} 10... Ngf6 {[%clk 0:02:55.6]} 11. Bh3 {[%clk 0:02:17.8]}
11... Qe7 {[%clk 0:02:54.9]} 12. a4 {[%clk 0:02:17.5]} 12... b4 {[%clk
0:02:54.4]} 13. Ne2 {[%clk 0:02:17.9]} 13... a5 {[%clk 0:02:44.5]} 14. O-O
{[%clk 0:02:09.1]} 14... O-O {[%clk 0:02:30.6]} 15. Rad1 {[%clk 0:02:00.6]}
15... Rfd8 {[%clk 0:02:24.5]} 16. b3 {[%clk 0:01:58]} 16... c5 {[%clk
0:02:16.1]} 17. dxc5 {[%clk 0:01:43.3]} 17... dxc5 {[%clk 0:02:15.4]} 18. Qe1
{[%clk 0:01:37.8]} 18... Ba6 {[%clk 0:01:54.7]} 19. Qf2 {[%clk 0:01:36.2]} 19...
Nh7 {[%clk 0:01:47.9]} 20. Rfe1 {[%clk 0:01:32]} 20... Rac8 {[%clk 0:01:34.4]}
21. Bf1 {[%clk 0:01:29.5]} 21... Ne5 {[%clk 0:01:24.9]} 22. Kg2 {[%clk
0:01:12.5]} 22... Nxg5 {[%clk 0:01:17.1]} 23. hxg5 {[%clk 0:01:12]} 23... c4
{[%clk 0:00:58]} 24. Nf4 {[%clk 0:01:07.3]} 24... Bb7 {[%clk 0:00:47.4]} 25. Bb6
{[%clk 0:00:53.9]} 25... Rxd1 {[%clk 0:00:46.8]} 26. Rxd1 {[%clk 0:00:54.6]}
26... Qxg5 {[%clk 0:00:45.7]} 27. Nh3 {[%clk 0:00:35.6]} 27... Qe7 {[%clk
0:00:44]} 28. Bxa5 {[%clk 0:00:35]} 28... g5 {[%clk 0:00:34.4]} 29. Re1 {[%clk
0:00:06.4]} 29... cxb3 {[%clk 0:00:30.2]} 30. cxb3 {[%clk 0:00:06.4]} 30... Rc3
{[%clk 0:00:30.4]} 31. Re3 {[%clk 0:00:06.9]} 31... g4 {[%clk 0:00:28.2]} 32.
fxg4 {[%clk 0:00:06]} 32... Nxg4 {[%clk 0:00:27]} 0-1